bitfinex-derivatives/quotes_BTCF0:USTF0_20250329
["timestamp","ask_amount","ask_price","bid_price","bid_amount"]
[1743283836896,1.01650713,82540.0,82539.0,5.323e-05]
[1743283838000,1.07840713,82540.0,82539.0,5.323e-05]
[1743283840501,1.07940713,82540.0,82539.0,5.323e-05]
[1743283841698,0.35780713,82540.0,82539.0,5.323e-05]
[1743283841898,1.06333732,82540.0,82539.0,5.323e-05]
[1743283842688,1.06346848,82540.0,82539.0,5.323e-05]
[1743283844692,1.0633265,82540.0,82539.0,5.323e-05]
[1743283846702,1.06332066,82540.0,82539.0,5.323e-05]
[1743283846889,1.05665265,82540.0,82539.0,5.323e-05]
[1743283847092,0.33505265,82540.0,82539.0,5.323e-05]
[1743283847301,1.05665265,82540.0,82539.0,5.323e-05]
[1743283850905,1.11559687,82540.0,82539.0,5.323e-05]
[1743283851604,0.39399687,82540.0,82539.0,5.323e-05]
[1743283851804,1.11559687,82540.0,82539.0,5.323e-05]
[1743283852004,1.10579946,82540.0,82539.0,5.323e-05]
[1743283854208,0.44509994,82540.0,82539.0,5.323e-05]
[1743283854510,1.16669994,82540.0,82539.0,5.323e-05]
[1743283854899,1.30808081,82540.0,82539.0,5.323e-05]
[1743283855495,0.58648081,82540.0,82539.0,5.323e-05]
[1743283855699,1.30808081,82540.0,82539.0,5.323e-05]
[1743283855895,1.24718033,82540.0,82539.0,5.323e-05]
[1743283860303,0.52558033,82540.0,82539.0,5.323e-05]
[1743283860503,1.24718033,82540.0,82539.0,5.323e-05]
[1743283861109,0.1212067,82535.0,82534.0,0.02435523]
[1743283861306,0.13147172,82535.0,82534.0,0.02435523]
[1743283861907,0.31482583,82535.0,82534.0,0.02435523]
[1743283862107,0.30524081,82535.0,82534.0,0.02435523]
[1743283862309,1.02884081,82535.0,82534.0,0.02435523]
[1743283862511,0.30724081,82535.0,82534.0,0.02435523]
[1743283862712,1.02884081,82535.0,82534.0,0.02435523]
[1743283863413,1.03084081,82535.0,82534.0,0.02435523]
[1743283863604,0.30924081,82535.0,82534.0,0.02435523]
[1743283864011,1.03084081,82535.0,82534.0,0.02435523]
[1743283864211,1.03084081,82535.0,82534.0,0.05525523]
[1743283864413,1.2311659,82535.0,82534.0,0.05525523]
[1743283864613,0.5095659,82535.0,82534.0,0.05525523]
[1743283864810,1.2311659,82535.0,82534.0,0.05525523]
[1743283866601,0.5095659,82535.0,82534.0,0.05525523]
[1743283866805,1.2311659,82535.0,82534.0,0.05525523]
[1743283867007,1.2311659,82535.0,82523.0,0.00048471]
[1743283867008,0.1212229,82524.0,82523.0,0.00048471]
[1743283867213,0.6017829,82524.0,82523.0,0.00048471]
[1743283867711,0.72294435,82524.0,82523.0,0.00048471]
[1743283869216,0.75474435,82524.0,82523.0,0.00048471]
[1743283869817,0.75474435,82524.0,82523.0,8.671e-05]
[1743283871612,0.76378908,82524.0,82523.0,8.671e-05]
[1743283872024,0.8227333,82524.0,82523.0,8.671e-05]
[1743283873624,0.8227333,82524.0,82523.0,0.06498671]
[1743283875637,0.4619333,82524.0,82523.0,0.06498671]
[1743283875928,0.8227333,82524.0,82523.0,0.06498671]
[1743283877136,0.8546333,82524.0,82523.0,0.06498671]
[1743283877537,0.8546333,82524.0,82523.0,8.671e-05]
[1743283878729,0.86534409,82524.0,82523.0,8.671e-05]
[1743283879741,0.86934409,82524.0,82523.0,8.671e-05]
[1743283880240,0.87888018,82524.0,82523.0,8.671e-05]
[1743283881441,0.87888018,82524.0,82523.0,1.377e-05]
[1743283881643,0.87887283,82524.0,82523.0,1.377e-05]
[1743283881844,1.02462109,82524.0,82523.0,1.377e-05]
[1743283882233,1.01509235,82524.0,82523.0,1.377e-05]
[1743283886740,0.65429235,82524.0,82523.0,1.377e-05]
[1743283886943,1.37589235,82524.0,82523.0,1.377e-05]
[1743283887144,0.1212464,82508.0,82507.0,0.0004848]
[1743283887350,0.97207514,82508.0,82507.0,0.0004848]
[1743283887943,1.16466353,82508.0,82507.0,0.0004848]
[1743283889237,1.1766157,82508.0,82507.0,0.0004848]
[1743283889839,1.1816157,82508.0,82507.0,0.0004848]
[1743283890137,1.42161799,82508.0,82507.0,0.0004848]
[1743283891041,1.42198564,82508.0,82507.0,0.0004848]
[1743283891650,0.70038564,82508.0,82507.0,0.0004848]
[1743283891947,1.42198564,82508.0,82507.0,0.0004848]
[1743283892248,0.1212537,82503.0,82502.0,0.03438979]
[1743283892438,0.14808178,82503.0,82502.0,0.03438979]
[1743283892837,0.16611979,82503.0,82502.0,0.03438979]
[1743283893044,0.34812089,82503.0,82502.0,0.03438979]
[1743283893239,0.3320092,82503.0,82502.0,0.03438979]
[1743283894052,0.33200139,82503.0,82502.0,0.03438979]
[1743283894252,0.33700139,82503.0,82502.0,0.03438979]
[1743283894450,0.34200139,82503.0,82502.0,0.03438979]
[1743283895855,0.70280139,82503.0,82502.0,0.03438979]
[1743283896245,0.70280139,82503.0,82502.0,0.0306]
[1743283898041,0.34200139,82503.0,82502.0,0.0306]
[1743283898242,0.1212567,82501.0,82492.0,0.0426]
[1743283898442,0.1212567,82501.0,82475.0,0.00048499]
[1743283898443,0.13196528,82501.0,82475.0,0.00048499]
[1743283898656,0.13196528,82501.0,82476.0,0.0744]
[1743283898657,0.1212699,82492.0,82476.0,0.0744]
[1743283898851,0.61173848,82492.0,82476.0,0.0744]
[1743283899253,0.62781699,82492.0,82476.0,0.0744]
[1743283899451,0.66071699,82492.0,82476.0,0.0744]
[1743283899657,0.83197961,82492.0,82476.0,0.0744]
[1743283899956,0.83508011,82492.0,82476.0,0.0744]
[1743283900851,1.19588011,82492.0,82476.0,0.0744]
[1743283901442,1.1959269,82492.0,82476.0,0.0744]
[1743283902455,1.1989269,82492.0,82476.0,0.0744]
[1743283902655,1.1989269,82492.0,82491.0,3.741e-05]
[1743283903356,1.18281959,82492.0,82491.0,3.741e-05]
[1743283903747,0.1212919,82477.0,82476.0,0.0744]
[1743283903947,0.61179897,82477.0,82476.0,0.0744]
[1743283904158,0.1212934,82476.0,82475.0,0.00048499]
[1743283904458,0.19554047,82476.0,82475.0,0.00048499]
[1743283904855,0.21357848,82476.0,82475.0,0.00048499]
[1743283905056,0.33482513,82476.0,82475.0,0.00048499]
[1743283905256,0.34714194,82476.0,82475.0,0.00048499]
[1743283905762,0.35601891,82476.0,82475.0,0.00048499]
[1743283906259,0.35701891,82476.0,82475.0,0.00048499]
[1743283906653,0.35801891,82476.0,82475.0,0.00048499]
[1743283907154,0.121317,82460.0,82459.0,1e-07]
[1743283907357,0.97262407,82460.0,82459.0,1e-07]
[1743283907858,1.1119102,82460.0,82459.0,1e-07]
[1743283908561,1.1430102,82460.0,82459.0,1e-07]
[1743283910360,0.1213273,82453.0,82452.0,0.21791029]
[1743283910554,0.1213273,82453.0,82452.0,0.00064]
[1743283910555,0.49287437,82453.0,82452.0,0.00064]
[1743283910751,0.49287437,82453.0,82445.0,0.073]
[1743283910752,0.1213376,82446.0,82445.0,0.073]
[1743283910947,0.61192467,82446.0,82445.0,0.073]
[1743283911560,0.67352467,82446.0,82445.0,0.073]
[1743283911758,0.79481691,82446.0,82445.0,0.073]
[1743283912067,0.81285492,82446.0,82445.0,0.073]
[1743283912360,0.1213405,82444.0,82427.0,0.17220796]
[1743283912558,0.1213641,82428.0,82427.0,0.17220796]
[1743283912753,0.61858196,82428.0,82427.0,0.17288796]
[1743283913260,0.73971647,82428.0,82427.0,0.11219727]
[1743283913462,0.80371647,82428.0,82427.0,0.11219727]
[1743283913854,0.81261705,82428.0,82427.0,0.11219727]
[1743283914061,0.82381068,82428.0,82427.0,0.11219727]
[1743283914268,0.82381068,82428.0,82427.0,0.10077375]
[1743283914769,0.82381068,82428.0,82427.0,0.00068]
[1743283914964,0.1213729,82422.0,82421.0,0.0304]
[1743283915168,0.13197533,82422.0,82421.0,0.0304]
[1743283915669,0.28360289,82422.0,82421.0,0.0304]
[1743283915865,0.30150731,82422.0,82421.0,0.0304]
[1743283916059,0.33310731,82422.0,82421.0,0.0304]
[1743283916456,0.33710731,82422.0,82421.0,0.0304]
[1743283917464,0.33710731,82422.0,82421.0,0.02041241]
[1743283917861,0.34110731,82422.0,82421.0,0.02041241]
[1743283918169,0.32991368,82422.0,82421.0,0.02041241]
[1743283918860,0.69071368,82422.0,82421.0,0.02041241]
[1743283919460,0.69071368,82422.0,82421.0,0.01334078]
[1743283920658,0.69071368,82422.0,82421.0,0.00335318]
[1743283924172,0.69064551,82422.0,82421.0,0.00335318]
[1743283924363,0.80964551,82422.0,82421.0,0.00335318]
[1743283925069,0.80968551,82422.0,82421.0,0.00335318]
[1743283925855,0.69064551,82422.0,82421.0,0.00335318]
[1743283926060,0.50741795,82422.0,82421.0,0.00335318]
[1743283926261,0.50741795,82422.0,82421.0,0.00403318]
[1743283926570,0.49764369,82422.0,82421.0,0.04663318]
[1743283926771,0.4909329,82422.0,82421.0,0.04663318]
[1743283927661,0.1301329,82422.0,82421.0,0.16800758]
[1743283927868,0.13673707,82422.0,82421.0,0.16800758]
[1743283928271,0.13673707,82422.0,82421.0,0.04663318]
[1743283929268,0.13673707,82422.0,82421.0,0.16800758]
[1743283929665,0.13673707,82422.0,82421.0,0.04663318]
[1743283930363,0.1301329,82422.0,82421.0,0.16800758]
[1743283930670,0.1241329,82422.0,82421.0,0.16800758]
[1743283931168,0.13074807,82422.0,82421.0,0.16800758]
[1743283931970,0.12974807,82422.0,82421.0,0.16800758]
[1743283932269,0.13074807,82422.0,82421.0,0.16800758]
[1743283932659,0.1251329,82422.0,82421.0,0.16800758]
[1743283933460,0.1241329,82422.0,82421.0,0.16800758]
[1743283933656,0.1253729,82422.0,82421.0,0.16800758]
[1743283933873,0.13199737,82422.0,82421.0,0.16800758]
[1743283934875,0.01130447,82422.0,82421.0,0.31800758]
[1743283935171,0.13199737,82422.0,82421.0,0.31800758]
[1743283935672,0.12999737,82422.0,82421.0,0.31800758]
[1743283936067,0.1233729,82422.0,82421.0,0.31800758]
[1743283936463,0.1213729,82422.0,82421.0,0.31800758]
[1743283936968,0.1223729,82422.0,82421.0,0.31800758]
[1743283937168,0.1231329,82422.0,82421.0,0.31800758]
[1743283937863,0.1241329,82422.0,82421.0,0.31800758]
[1743283939771,0.1233729,82422.0,82421.0,0.31800758]
[1743283941775,0.002,82422.0,82421.0,0.31800758]
[1743283946978,0.4824,82446.0,82435.0,0.1213537]
[1743283947270,0.0004,82452.0,82435.0,0.1221137]
[1743283947271,0.00098192,82436.0,82435.0,0.1221137]
[1743283947471,0.00018192,82436.0,82435.0,0.1221137]
[1743283947670,0.00086192,82436.0,82435.0,0.1648137]
[1743283948075,0.00386192,82436.0,82435.0,0.1648137]
[1743283948277,0.00318192,82436.0,82435.0,0.1648137]
[1743283948477,0.00618192,82436.0,82435.0,0.1648137]
[1743283950582,0.00618192,82436.0,82435.0,0.1772327]
[1743283950769,0.00618192,82436.0,82435.0,0.3272327]
[1743283952473,0.0319,82440.0,82439.0,0.1213479]
[1743283952781,0.13341255,82449.0,82448.0,0.1213346]
[1743283952982,0.1532141,82449.0,82448.0,0.4828146]
[1743283953176,0.03188,82449.0,82448.0,0.4828146]
[1743283953475,0.108197,82457.0,82451.0,0.1213302]
[1743283953679,0.0312,82456.0,82451.0,0.1220902]
[1743283953979,0.1525233,82456.0,82451.0,0.1220902]
[1743283954368,0.00108,82452.0,82451.0,0.1451902]
[1743283955074,0.00608,82452.0,82451.0,0.1451902]
[1743283955485,0.0054,82452.0,82451.0,0.1451902]
[1743283956271,0.0104,82452.0,82451.0,0.1461902]
[1743283956676,0.0632,82455.0,82454.0,0.1213258]
[1743283956871,0.0632,82455.0,82454.0,0.1220458]
[1743283957177,0.1213136,82463.0,82459.0,0.0606591]
[1743283957377,0.1220736,82463.0,82462.0,0.121314]
[1743283957771,0.00076,82463.0,82462.0,0.121954]
[1743283958177,0.1213125,82463.0,82462.0,0.1826075]
[1743283958379,0.1221125,82463.0,82462.0,0.1826075]
[1743283958781,0.0058,82463.0,82462.0,0.5434075]
[1743283958981,0.005,82463.0,82462.0,0.5434075]
[1743283959187,0.1213119,82464.0,82463.0,0.1213125]
[1743283959387,0.0306,82465.0,82463.0,0.1213125]
[1743283959388,0.0306,82465.0,82464.0,0.1213111]
[1743283959578,0.0306,82465.0,82464.0,0.1546111]
[1743283959779,0.0306,82465.0,82464.0,0.1866111]
[1743283960288,0.03132,82465.0,82464.0,0.1872911]
[1743283960483,0.0306,82465.0,82464.0,0.1866111]
[1743283960986,0.0326,82465.0,82464.0,0.1866111]
[1743283965190,0.03328,82465.0,82464.0,0.1872511]
[1743283965576,0.09678,82465.0,82464.0,0.1872511]
[1743283966285,0.0961,82465.0,82464.0,0.1872511]
[1743283966682,0.09678,82465.0,82464.0,0.1872511]
[1743283966881,0.0961,82465.0,82464.0,0.1872511]
[1743283970190,0.09678,82465.0,82464.0,0.1872511]
[1743283971388,0.0961,82465.0,82464.0,0.1872511]
[1743283972098,0.0941,82465.0,82464.0,0.1872511]
[1743283972392,0.0941,82465.0,82464.0,0.1892511]
[1743283973599,0.0941,82465.0,82464.0,0.1912511]
[1743283973790,0.09478,82465.0,82464.0,0.1902511]
[1743283974186,0.03218,82465.0,82464.0,0.1902511]
[1743283974399,0.0004,82468.0,82467.0,0.1213067]
[1743283974599,0.00128,82468.0,82467.0,0.1221867]
[1743283976198,0.0004,82468.0,82467.0,0.1221867]
[1743283977103,0.0004,82468.0,82467.0,0.1231867]
[1743283978700,0.00116,82468.0,82467.0,0.1231867]
[1743283978904,0.0004,82468.0,82467.0,0.1231867]
[1743283979105,0.00116,82468.0,82467.0,0.1231867]
[1743283979407,0.0004,82468.0,82467.0,0.1231867]
[1743283980692,0.0004,82468.0,82467.0,0.2435867]
[1743283982700,0.00116,82468.0,82467.0,0.2435867]
[1743283982906,0.0004,82468.0,82467.0,0.2435867]
[1743283983708,0.0004,82468.0,82467.0,0.53390689]
[1743283986501,0.1217052,82468.0,82467.0,0.41350689]
[1743283986708,0.1217052,82468.0,82467.0,0.1231867]
[1743283986903,0.1225452,82468.0,82467.0,0.1540867]
[1743283987106,0.1217052,82468.0,82467.0,0.1530867]
[1743283987306,0.1224652,82468.0,82467.0,0.1540867]
[1743283988805,0.1224652,82468.0,82467.0,0.1530867]
[1743283990099,0.1224652,82468.0,82467.0,0.00088]
[1743283992613,0.1254652,82468.0,82467.0,0.00088]
[1743283992815,0.24672509,82468.0,82467.0,0.00088]
[1743283993311,0.31462509,82468.0,82467.0,0.00088]
[1743283994017,0.67542509,82468.0,82467.0,0.00088]
[1743283994208,0.1213081,82466.0,82465.0,0.36242912]
[1743283994410,0.1221081,82466.0,82465.0,0.36322912]
[1743283994610,0.1221081,82466.0,82465.0,0.0008]
[1743283994813,0.121317,82460.0,82459.0,0.00018192]
[1743283995014,0.482917,82460.0,82459.0,0.00098192]
[1743283995215,0.482917,82460.0,82459.0,0.00018192]
[1743283995715,0.548217,82460.0,82459.0,0.00018192]
[1743283996401,0.549217,82460.0,82459.0,0.00018192]
[1743283997307,0.550217,82460.0,82459.0,0.00018192]
[1743284001715,0.79152865,82460.0,82459.0,0.00018192]
[1743284005326,0.79822058,82460.0,82459.0,0.00018192]
[1743284005823,0.43742058,82460.0,82459.0,0.00018192]
[1743284006028,0.79822058,82460.0,82459.0,0.00018192]
[1743284006225,0.43742058,82460.0,82459.0,0.00018192]
[1743284006520,0.79822058,82460.0,82459.0,0.00018192]
[1743284008535,0.43742058,82460.0,82459.0,0.00018192]
[1743284008716,0.79822058,82460.0,82459.0,0.00018192]
[1743284010225,0.74824248,82460.0,82459.0,0.00018192]
[1743284010829,0.74155055,82460.0,82459.0,0.00018192]
[1743284011016,0.38075055,82460.0,82459.0,0.00018192]
[1743284011220,0.74155055,82460.0,82459.0,0.00018192]
[1743284012033,0.38075055,82460.0,82459.0,0.00018192]
[1743284012330,0.74155055,82460.0,82459.0,0.00018192]
[1743284014328,0.38075055,82460.0,82459.0,0.00018192]
[1743284014523,0.74155055,82460.0,82459.0,0.00018192]
[1743284014933,0.1213302,82451.0,82450.0,0.0624]
[1743284015128,0.4827702,82451.0,82450.0,0.0624]
[1743284016122,0.4827702,82451.0,82450.0,0.0644]
[1743284016327,0.4827702,82451.0,82450.0,0.0664]
[1743284016528,0.1219702,82451.0,82450.0,0.0664]
[1743284016732,0.4827702,82451.0,82450.0,0.0664]
[1743284017532,0.60405509,82451.0,82450.0,0.02391922]
[1743284018137,0.121342,82443.0,82442.0,0.00018192]
[1743284018337,0.482862,82443.0,82442.0,0.00018192]
[1743284019142,0.546362,82443.0,82442.0,0.00018192]
[1743284019436,0.546362,82443.0,82442.0,0.00418192]
[1743284019642,0.66765866,82443.0,82442.0,0.004]
[1743284019842,0.1213523,82436.0,82435.0,0.29088104]
[1743284020046,0.1213523,82436.0,82427.0,0.00048527]
[1743284020047,0.1213611,82430.0,82427.0,0.00048527]
[1743284020451,0.1213611,82430.0,82429.0,0.36318912]
[1743284020645,0.30691776,82430.0,82429.0,0.36318912]
[1743284021150,0.30791776,82430.0,82429.0,0.32070834]
[1743284021450,0.30791776,82430.0,82429.0,0.00076]
[1743284021843,0.19323552,82430.0,82427.0,0.00048527]
[1743284022044,0.1213641,82428.0,82427.0,0.00120527]
[1743284022348,0.1220841,82428.0,82427.0,0.00120527]
[1743284022749,0.24339989,82428.0,82427.0,0.00120527]
[1743284022940,0.30849989,82428.0,82427.0,0.00120527]
[1743284023146,0.31617875,82428.0,82427.0,0.00120527]
[1743284023349,0.1213685,82425.0,82424.0,0.29083294]
[1743284023646,0.6032485,82425.0,82424.0,0.29159294]
[1743284023846,0.60992736,82425.0,82424.0,0.24911216]
[1743284024144,0.73125051,82425.0,82424.0,0.24911216]
[1743284025038,0.72457165,82425.0,82424.0,0.24911216]
[1743284025841,0.72657165,82425.0,82424.0,0.24911216]
[1743284026142,0.72657165,82425.0,82424.0,0.00076]
[1743284026339,0.1213817,82416.0,82415.0,0.0306]
[1743284026542,0.6034217,82416.0,82415.0,0.0621]
[1743284027255,0.67940268,82416.0,82415.0,0.0621]
[1743284027648,0.67940268,82416.0,82415.0,0.0641]
[1743284030458,0.68605525,82416.0,82415.0,0.0641]
[1743284032158,0.32525525,82416.0,82415.0,0.0641]
[1743284034152,0.33492559,82416.0,82415.0,0.0641]
[1743284034356,0.33492563,82416.0,82415.0,0.0641]
[1743284035862,0.69572563,82416.0,82415.0,0.0641]
[1743284036564,0.33492563,82416.0,82415.0,0.0641]
[1743284037156,0.6958843,82416.0,82415.0,0.0641]
[1743284038155,0.72680462,82416.0,82415.0,0.0641]
[1743284038469,0.36600462,82416.0,82415.0,0.0641]
[1743284038766,0.72680462,82416.0,82415.0,0.0641]
[1743284042160,0.75511736,82416.0,82415.0,0.0641]
[1743284042360,0.75511736,82416.0,82415.0,0.0335]
[1743284043457,0.75890784,82416.0,82415.0,0.00517752]
[1743284043762,0.75890784,82416.0,82415.0,0.00417752]
[1743284043957,0.76190784,82416.0,82415.0,0.00417752]
[1743284044161,0.74504699,82416.0,82415.0,0.00417752]
[1743284044664,0.1213861,82413.0,82412.0,0.0324]
[1743284044966,0.13284413,82413.0,82412.0,0.0324]
[1743284045267,0.16756691,82413.0,82412.0,0.0324]
[1743284045467,0.1673689,82413.0,82412.0,0.0324]
[1743284046770,0.1693689,82413.0,82412.0,0.0324]
[1743284046967,0.1693689,82413.0,82412.0,0.0653]
[1743284047171,0.15484181,82413.0,82412.0,0.0653]
[1743284047471,0.1543729,82413.0,82412.0,0.0653]
[1743284047853,0.5151729,82413.0,82412.0,0.0653]
[1743284048570,0.5475729,82413.0,82412.0,0.03797637]
[1743284049369,0.5474921,82413.0,82412.0,0.03797637]
[1743284049762,0.72582044,82413.0,82412.0,0.03797637]
[1743284049964,0.35746673,82413.0,82412.0,0.03797637]
[1743284050159,0.72026673,82413.0,82412.0,0.03797637]
[1743284050869,0.35946673,82413.0,82412.0,0.03797637]
[1743284051070,0.72026673,82413.0,82412.0,0.03797637]
[1743284051869,0.35946673,82413.0,82412.0,0.03797637]
[1743284052665,0.72026673,82413.0,82412.0,0.03797637]
[1743284053168,0.71048701,82413.0,82412.0,0.03797637]
[1743284053378,0.67143444,82413.0,82412.0,0.03797637]
[1743284053564,0.40618844,82413.0,82412.0,0.03861637]
[1743284054373,0.40618844,82413.0,82412.0,0.52016397]
[1743284054568,0.40618844,82413.0,82412.0,0.52080397]
[1743284054771,0.28480234,82413.0,82412.0,0.52080397]
[1743284054971,0.40218844,82413.0,82412.0,0.52080397]
[1743284055269,0.28280234,82413.0,82412.0,0.52080397]
[1743284055669,0.40018844,82413.0,82412.0,0.52080397]
[1743284055870,0.28080234,82413.0,82412.0,0.52080397]
[1743284056770,0.00492,82413.0,82412.0,0.73792]
[1743284057171,0.001,82413.0,82412.0,0.88892]
[1743284057378,0.0193,82417.0,82414.0,0.0606918]
[1743284057669,0.0193,82417.0,82416.0,0.4710117]
[1743284057876,0.02022,82417.0,82416.0,0.4716517]
[1743284058177,0.02022,82417.0,82416.0,0.6852517]
[1743284058369,0.02022,82417.0,82416.0,0.5352517]
[1743284058866,0.02022,82417.0,82416.0,0.6852517]
[1743284059065,0.18153057,82426.0,82418.0,0.0606888]
[1743284059262,0.14614446,82421.0,82420.0,0.1213758]
[1743284059466,0.14614446,82421.0,82420.0,0.2431358]
[1743284059677,0.14614446,82421.0,82420.0,0.3931358]
[1743284059867,0.14614446,82421.0,82420.0,0.3937758]
[1743284060068,0.18153057,82426.0,82425.0,0.1213685]
[1743284060271,0.00018192,82433.0,82431.0,0.1213596]
[1743284060272,0.1213587,82432.0,82431.0,0.1213596]
[1743284060778,0.1213587,82432.0,82431.0,0.1219996]
[1743284060978,0.00018192,82433.0,82432.0,0.1213582]
[1743284061485,0.00018192,82433.0,82432.0,0.1530582]
[1743284061664,0.00018192,82433.0,82432.0,0.5138582]
[1743284063164,0.00318192,82433.0,82432.0,0.5138582]
[1743284063474,0.12453862,82433.0,82432.0,0.5138582]
[1743284063675,0.12753862,82433.0,82432.0,0.5138582]
[1743284064671,0.00618192,82433.0,82432.0,0.5138582]
[1743284065677,0.00618192,82433.0,82432.0,0.5144982]
[1743284066077,0.12753862,82433.0,82432.0,0.5144982]
[1743284066477,0.12817862,82433.0,82432.0,0.5144982]
[1743284066675,0.12817862,82433.0,82432.0,0.1536982]
[1743284066879,0.12817862,82433.0,82432.0,0.5144982]
[1743284067078,0.00618192,82433.0,82432.0,0.5144982]
[1743284068475,0.12753862,82433.0,82432.0,0.5144982]
[1743284068667,0.00686192,82433.0,82432.0,0.5144982]
[1743284068870,0.00618192,82433.0,82432.0,0.5144982]
[1743284069686,0.12753862,82433.0,82432.0,0.5144982]
[1743284069986,0.00690192,82433.0,82432.0,0.5144982]
[1743284070174,0.00618192,82433.0,82432.0,0.5144982]
[1743284070975,0.12817862,82433.0,82432.0,0.5144982]
[1743284071786,0.16107862,82433.0,82432.0,0.5144982]
[1743284072586,0.16107862,82433.0,82432.0,0.5474982]
[1743284073571,0.16107862,82433.0,82432.0,0.1866982]
[1743284073886,0.16107862,82433.0,82432.0,0.5474982]
[1743284077681,0.16107862,82433.0,82432.0,0.1866982]
[1743284077987,0.16107862,82433.0,82432.0,0.5474982]
[1743284078377,0.16107862,82433.0,82432.0,0.1866982]
[1743284078578,0.16107862,82433.0,82432.0,0.5474982]
[1743284082085,0.16107862,82433.0,82432.0,0.1866982]
[1743284082282,0.15607862,82433.0,82432.0,0.1866982]
[1743284082484,0.15707862,82433.0,82432.0,0.5474982]
[1743284083380,0.15607862,82433.0,82432.0,0.1866982]
[1743284083690,0.15707862,82433.0,82432.0,0.5474982]
[1743284083886,0.15607862,82433.0,82432.0,0.5474982]
[1743284084082,0.15707862,82433.0,82432.0,0.5474982]
[1743284086792,0.15607862,82433.0,82432.0,0.5474982]
[1743284087380,0.15507862,82433.0,82432.0,0.5474982]
[1743284088491,0.15607862,82433.0,82432.0,0.5474982]
[1743284089285,0.15707862,82433.0,82432.0,0.5474982]
[1743284090485,0.15707862,82433.0,82432.0,0.5157982]
[1743284091991,0.15707862,82433.0,82432.0,0.1549982]
[1743284092187,0.15707862,82433.0,82432.0,0.5157982]
[1743284092582,0.15707862,82433.0,82432.0,0.1549982]
[1743284092783,0.15707862,82433.0,82432.0,0.5157982]
[1743284094788,0.03572192,82433.0,82432.0,0.5157982]
[1743284094988,0.15643862,82433.0,82432.0,0.5157982]
[1743284096085,0.15543862,82433.0,82432.0,0.5157982]
[1743284096281,0.15443862,82433.0,82432.0,0.5167982]
[1743284096490,0.15507862,82433.0,82432.0,0.5167982]
[1743284097384,0.15607862,82433.0,82432.0,0.5167982]
[1743284098695,0.15707862,82433.0,82432.0,0.1549982]
[1743284098896,0.15707862,82433.0,82432.0,0.5157982]
[1743284099698,0.15707862,82433.0,82432.0,1.27054493]
[1743284099992,0.15643862,82433.0,82432.0,1.27054493]
[1743284100188,0.03508192,82433.0,82432.0,1.27054493]
[1743284101396,0.03408192,82433.0,82432.0,1.27054493]
[1743284101586,0.03508192,82433.0,82432.0,1.27054493]
[1743284101791,0.06538192,82433.0,82432.0,1.27054493]
[1743284102290,0.06538192,82433.0,82432.0,0.90974493]
[1743284102491,0.06538192,82433.0,82432.0,1.27054493]
[1743284103696,0.06538192,82433.0,82432.0,0.5157982]
[1743284104095,0.06538192,82433.0,82432.0,0.1549982]
[1743284104399,0.06602192,82433.0,82432.0,0.5157982]
[1743284104600,0.06538192,82433.0,82432.0,0.1549982]
[1743284104802,0.06602192,82433.0,82432.0,0.1549982]
[1743284105005,0.06602192,82433.0,82432.0,0.5157982]
[1743284105303,0.06538192,82433.0,82432.0,0.5157982]
[1743284106893,0.18673862,82433.0,82432.0,0.4827982]
[1743284107094,0.18737862,82433.0,82432.0,0.4827982]
[1743284108101,0.18737862,82433.0,82432.0,0.36144]
[1743284108507,0.19696297,82433.0,82432.0,0.4827982]
[1743284109113,0.19696297,82433.0,82432.0,0.36144]
[1743284109409,0.20373767,82433.0,82432.0,0.36144]
[1743284109807,0.20373767,82433.0,82432.0,0.4827982]
[1743284110108,0.19696297,82433.0,82432.0,0.4827982]
[1743284110414,0.56453673,82433.0,82432.0,0.00064]
[1743284111106,0.57357859,82433.0,82432.0,0.21907597]
[1743284112110,0.57365924,82433.0,82432.0,0.21907597]
[1743284113106,0.84497061,82433.0,82432.0,0.21843597]
[1743284113308,0.84497061,82433.0,82428.0,0.29124796]
[1743284113309,0.1213626,82429.0,82428.0,0.29124796]
[1743284113505,0.1319476,82429.0,82428.0,0.29188796]
[1743284113713,0.69792136,82429.0,82428.0,0.29188796]
[1743284113913,0.81923273,82429.0,82428.0,0.29188796]
[1743284114121,0.88253273,82429.0,82428.0,0.29188796]
[1743284114327,0.88253273,82429.0,82428.0,0.28479796]
[1743284114523,0.87286773,82429.0,82428.0,0.27019796]
[1743284114916,0.87286773,82429.0,82428.0,0.00164]
[1743284115225,0.1213744,82421.0,82420.0,0.26955796]
[1743284115420,0.4926514,82421.0,82420.0,0.27027796]
[1743284115620,0.49942516,82421.0,82420.0,0.27027796]
[1743284116021,0.68404214,82421.0,82420.0,0.27027796]
[1743284116625,0.68404214,82421.0,82420.0,0.27227796]
[1743284117833,0.68404214,82421.0,82420.0,0.26083101]
[1743284118025,0.68404214,82421.0,82420.0,0.22523101]
[1743284118728,0.68404214,82421.0,82420.0,0.16452263]
[1743284118938,0.68404214,82421.0,82420.0,0.14766264]
[1743284119136,0.1213876,82412.0,82411.0,0.00048537]
[1743284119324,0.49282432,82412.0,82411.0,0.00112537]
[1743284119630,0.49959808,82412.0,82411.0,0.00048537]
[1743284119830,0.49004136,82412.0,82411.0,0.00048537]
[1743284120030,0.56471679,82412.0,82411.0,0.00048537]
[1743284121432,0.1194038,82401.0,82400.0,0.1]
[1743284121635,0.14274485,82401.0,82400.0,0.10072]
[1743284121827,0.14951861,82401.0,82400.0,0.10072]
[1743284122235,0.21441861,82401.0,82400.0,0.10072]
[1743284122730,0.21441861,82401.0,82400.0,0.10172]
[1743284123126,0.21441861,82401.0,82400.0,0.10372]
[1743284123725,0.21441861,82401.0,82400.0,0.04626854]
[1743284123926,0.21442748,82401.0,82400.0,0.04626854]
[1743284124327,0.57522748,82401.0,82400.0,0.04626854]
[1743284124528,0.1214112,82396.0,82395.0,0.00048546]
[1743284124831,0.1302755,82396.0,82395.0,0.00048546]
[1743284125243,0.25841511,82396.0,82395.0,0.00048546]
[1743284125442,0.32091511,82396.0,82395.0,0.00048546]
[1743284125825,0.68152819,82396.0,82395.0,0.00048546]
[1743284126029,0.56016234,82396.0,82395.0,0.00048546]
[1743284126228,0.44075114,82396.0,82395.0,0.12189816]
[1743284126535,0.06358,82396.0,82395.0,0.12189816]
[1743284126743,0.0625,82396.0,82395.0,0.12253816]
[1743284126930,0.06366,82396.0,82395.0,0.18453816]
[1743284127131,0.1839112,82396.0,82395.0,0.18453816]
[1743284127327,0.1849912,82396.0,82395.0,0.18453816]
[1743284129539,0.06358,82396.0,82395.0,0.18453816]
[1743284130546,0.1849912,82396.0,82395.0,0.18453816]
[1743284130734,0.06358,82396.0,82395.0,0.18453816]
[1743284130934,0.0625,82396.0,82395.0,0.18453816]
[1743284131636,0.00108,82396.0,82395.0,0.18453816]
[1743284131840,0.0313,82403.0,82402.0,0.1214023]
[1743284132042,0.1858809,82403.0,82402.0,0.1220423]
[1743284133239,0.1858809,82403.0,82402.0,0.00064]
[1743284134345,0.1858809,82403.0,82402.0,0.1220423]
[1743284136046,0.1868809,82403.0,82402.0,0.1220423]